bitfinex/quotes_BTCUSD_20250522
["timestamp","ask_amount","ask_price","bid_price","bid_amount"]
[1747896258616,0.20848619,110850.0,110840.0,0.48135146]
[1747896258826,0.21750722,110850.0,110840.0,0.27158926]
[1747896259045,0.20848619,110850.0,110840.0,0.47007314]
[1747896259307,0.20848619,110850.0,110840.0,0.49057314]
[1747896259845,0.21750722,110850.0,110840.0,0.49959507]
[1747896260072,0.21750722,110850.0,110840.0,0.49057331]
[1747896260554,0.21750722,110850.0,110840.0,0.49959507]
[1747896260763,0.20848619,110850.0,110840.0,0.50861675]
[1747896260975,0.21750714,110850.0,110840.0,0.50861675]
[1747896261161,0.21750714,110850.0,110840.0,0.49057331]
[1747896261364,0.21750714,110850.0,110840.0,0.28306725]
[1747896261603,0.208487,110850.0,110840.0,0.26256725]
[1747896262509,0.00902128,110840.0,110830.0,0.99714621]
[1747896262734,0.00902128,110840.0,110830.0,1.34925902]
[1747896263339,0.00902128,110840.0,110830.0,1.39925902]
[1747896263789,0.00902128,110840.0,110830.0,1.39123685]
[1747896264021,0.207487,110850.0,110830.0,1.39123685]
[1747896264249,0.207487,110850.0,110840.0,0.26256725]
[1747896264475,0.207487,110850.0,110840.0,0.01880718]
[1747896265158,0.23906613,110850.0,110840.0,0.41880718]
[1747896267900,0.19846613,110850.0,110840.0,0.41880718]
[1747896269582,0.19846613,110850.0,110840.0,0.9017147]
[1747896269583,0.18042399,110850.0,110840.0,0.9017147]
[1747896269840,0.47808603,110850.0,110840.0,0.91073655]
[1747896270050,0.47808603,110850.0,110840.0,0.91073663]
[1747896270260,0.48710706,110850.0,110840.0,0.6293622]
[1747896270477,0.48710706,110850.0,110840.0,0.89192945]
[1747896270683,0.49612825,110850.0,110840.0,0.71148926]
[1747896271239,0.48710706,110850.0,110840.0,0.90095138]
[1747896271450,0.48710706,110850.0,110840.0,0.90095146]
[1747896271663,0.21650706,110850.0,110840.0,0.90095146]
[1747896272096,0.21650706,110850.0,110840.0,0.71148926]
[1747896272509,0.21650706,110850.0,110840.0,0.72051119]
[1747896273153,0.20748603,110850.0,110840.0,0.90997331]
[1747896273368,0.21650698,110850.0,110840.0,0.90997331]
[1747896273578,0.21650698,110850.0,110840.0,0.91899507]
[1747896273788,0.20748603,110850.0,110840.0,0.90997331]
[1747896274000,0.21650706,110850.0,110840.0,0.90997331]
[1747896274432,0.18944445,110850.0,110840.0,0.91899499]
[1747896274618,0.20748578,110850.0,110840.0,0.91899499]
[1747896274828,0.2074857,110850.0,110840.0,0.92801659]
[1747896275239,0.19846499,110850.0,110840.0,0.92801659]
[1747896275448,0.21650649,110850.0,110840.0,0.90997298]
[1747896275659,0.21650649,110850.0,110840.0,0.9009513]
[1747896275857,0.21650649,110850.0,110840.0,0.91899474]
[1747896276210,0.21650649,110850.0,110840.0,0.9009513]
[1747896276555,0.21650649,110850.0,110840.0,0.90997306]
[1747896277741,0.48645265,110860.0,110840.0,0.92801586]
[1747896277987,0.48659057,110860.0,110850.0,0.28366725]
[1747896278432,0.48659057,110860.0,110850.0,0.26256725]
[1747896278650,0.48659057,110860.0,110850.0,0.28356725]
[1747896278871,0.19798973,110860.0,110850.0,0.48203306]
[1747896279099,0.2160296,110860.0,110850.0,0.50183314]
[1747896279967,0.01758209,110860.0,110850.0,0.51085377]
[1747896280309,0.19798981,110860.0,110850.0,0.51085385]
[1747896280520,0.2070097,110860.0,110850.0,0.51085385]
[1747896280747,0.21802976,110860.0,110850.0,0.51085393]
[1747896280962,0.01056228,110860.0,110850.0,0.60942012]
[1747896281176,0.00413792,110860.0,110850.0,0.60942012]
[1747896281597,0.00413792,110860.0,110850.0,1.00942012]
[1747896283169,0.02217746,110860.0,110850.0,1.00942012]
[1747896283388,0.20258518,110860.0,110850.0,1.0094202]
[1747896283632,0.20258518,110860.0,110850.0,1.00039949]
[1747896283827,0.20258518,110860.0,110850.0,1.01844083]
[1747896283980,0.21160515,110860.0,110850.0,1.0094202]
[1747896284343,0.01315757,110860.0,110850.0,1.01844083]
[1747896284747,0.22062505,110860.0,110850.0,1.00039949]
[1747896285002,0.22062505,110860.0,110850.0,0.9913787]
[1747896285171,0.21160499,110860.0,110850.0,1.00039949]
[1747896285609,0.22964551,110860.0,110850.0,0.66256725]
[1747896285818,0.21160613,110860.0,110850.0,0.66256725]
[1747896286021,0.21160613,110860.0,110850.0,0.67158844]
[1747896286194,0.21160613,110860.0,110850.0,0.66256725]
[1747896287039,0.21160613,110860.0,110850.0,0.67158844]
[1747896287320,0.21160613,110860.0,110850.0,0.66256725]
[1747896292068,0.21160597,110860.0,110850.0,0.66256725]
[1747896292541,0.21160597,110860.0,110850.0,0.67158844]
[1747896292721,0.21160597,110860.0,110850.0,0.66256725]
[1747896293308,0.22062635,110860.0,110850.0,0.67158844]
[1747896293515,0.22062635,110860.0,110850.0,0.4]
[1747896293742,0.21160638,110860.0,110850.0,0.66256725]
[1747896293905,0.22004598,110860.0,110850.0,0.66256725]
[1747896294885,0.21160638,110860.0,110850.0,0.66256725]
[1747896295663,0.21160638,110860.0,110850.0,0.19376605]
[1747896295829,0.202586,110860.0,110850.0,0.19376605]
[1747896296030,0.21160638,110860.0,110850.0,0.20278724]
[1747896296806,0.202586,110860.0,110850.0,0.79655329]
[1747896297021,0.2116063,110860.0,110850.0,0.8055744]
[1747896297251,0.2116063,110860.0,110850.0,0.79655329]
[1747896297647,0.2116063,110860.0,110850.0,0.7875321]
[1747896298053,0.2116063,110860.0,110850.0,0.79655329]
[1747896298264,0.2116063,110860.0,110850.0,0.60278724]
[1747896298844,0.2116063,110860.0,110850.0,0.61180835]
[1747896299011,0.22005002,110860.0,110850.0,0.61180835]
[1747896299376,0.22005002,110860.0,110850.0,0.8055744]
[1747896300802,0.22005002,110860.0,110850.0,0.60278724]
[1747896301645,0.22005002,110860.0,110850.0,0.59376605]
[1747896302069,0.22005002,110860.0,110850.0,0.60278724]
[1747896302246,0.22005002,110860.0,110850.0,0.8055744]
[1747896302465,0.21102939,110860.0,110850.0,1.00549839]
[1747896302678,0.22004969,110860.0,110850.0,0.8444744]
[1747896302901,0.22004969,110860.0,110850.0,0.8250744]
[1747896303261,0.22004969,110860.0,110850.0,0.81605329]
[1747896303482,0.22004969,110860.0,110850.0,0.8250744]
[1747896304116,0.22004969,110860.0,110850.0,0.8070321]
[1747896304329,0.22004969,110860.0,110850.0,0.79655329]
[1747896304799,0.22004969,110860.0,110850.0,0.8055744]
[1747896305454,0.22004969,110860.0,110850.0,0.79655329]
[1747896307658,0.22004969,110860.0,110850.0,0.7875321]
[1747896308332,0.22004969,110860.0,110850.0,0.79655329]
[1747896308542,0.22004969,110860.0,110850.0,0.8055744]
[1747896309108,0.2110298,110860.0,110850.0,0.59376605]
[1747896309349,0.20750573,110840.0,110830.0,0.59278887]
[1747896309560,0.19848323,110840.0,110830.0,0.78226816]
[1747896309771,0.46900001,110850.0,110830.0,1.2003125]
[1747896309982,0.20750451,110840.0,110830.0,0.9975242]
[1747896310192,0.19848291,110840.0,110830.0,0.79]
[1747896310397,0.23868372,110840.0,110830.0,0.45]
[1747896311019,0.23868372,110840.0,110830.0,0.451]
[1747896311229,0.24713279,110840.0,110830.0,0.64476605]
[1747896311647,0.33667835,110840.0,110830.0,0.452]
[1747896311859,0.33667835,110840.0,110830.0,0.64576605]
[1747896312075,0.24713279,110840.0,110830.0,0.64576605]
[1747896312289,0.51765279,110840.0,110830.0,0.64576605]
[1747896312500,0.50863119,110840.0,110830.0,0.64576605]
[1747896313580,0.00844907,110840.0,110830.0,0.9639909]
[1747896313802,0.21595406,110840.0,110830.0,0.64576605]
[1747896314015,0.22497656,110840.0,110830.0,0.64576605]
[1747896314410,0.23788421,110840.0,110830.0,0.64576605]
[1747896316023,0.50844421,110840.0,110830.0,0.64576605]
[1747896316670,0.48894421,110840.0,110830.0,0.64576605]
[1747896318052,0.21838421,110840.0,110830.0,0.64576605]
[1747896318257,0.48894421,110840.0,110830.0,0.64576605]
[1747896318478,0.50934421,110840.0,110830.0,0.64576605]
[1747896320947,0.50934421,110840.0,110830.0,0.6445947]
[1747896321163,0.46904421,110840.0,110830.0,0.6445947]
[1747896321628,0.46904388,110840.0,110830.0,0.6445947]
[1747896321833,0.46904388,110840.0,110830.0,0.71337677]
[1747896322839,0.4600222,110840.0,110830.0,0.71337677]
[1747896325136,0.00902128,110840.0,110830.0,0.93623332]
[1747896325317,0.19848307,110840.0,110830.0,0.95427848]
[1747896325522,0.19848307,110840.0,110830.0,0.94525598]
[1747896325728,0.19848307,110840.0,110830.0,0.95427848]
[1747896326029,0.19848299,110840.0,110830.0,0.97232323]
[1747896326256,0.19848299,110840.0,110830.0,0.95427848]
[1747896326466,0.19848299,110840.0,110830.0,0.9633009]
[1747896326619,0.20750459,110840.0,110830.0,0.95427848]
[1747896326803,0.20750459,110840.0,110830.0,0.95164962]
[1747896327000,0.18946155,110840.0,110830.0,0.95164962]
[1747896327201,0.19848291,110840.0,110830.0,1.37848895]
[1747896327430,0.19848291,110840.0,110830.0,1.35720204]
[1747896327631,0.20750443,110840.0,110830.0,1.35720204]
[1747896327795,0.20750443,110840.0,110830.0,1.3481797]
[1747896327996,0.20750443,110840.0,110830.0,1.3572022]
[1747896328265,0.19848291,110840.0,110830.0,1.3572022]
[1747896328450,0.20750443,110840.0,110830.0,1.3572022]
[1747896329301,0.19848291,110840.0,110830.0,1.3481797]
[1747896329507,0.19848291,110840.0,110830.0,1.33915712]
[1747896329508,0.20750443,110840.0,110830.0,1.33915712]
[1747896329712,0.20750443,110840.0,110830.0,1.34817962]
[1747896330132,0.1804287,110850.0,110840.0,0.18044027]
[1747896330392,0.19846516,110850.0,110840.0,0.75645844]
[1747896330600,0.18054564,110860.0,110850.0,0.19846597]
[1747896330805,0.4685973,110860.0,110850.0,0.90291425]
[1747896331017,0.47761727,110860.0,110850.0,0.89389322]
[1747896331229,0.47761703,110860.0,110850.0,0.90291409]
[1747896331450,0.49565722,110860.0,110850.0,0.71346923]
[1747896331651,0.22505714,110860.0,110850.0,0.72249026]
[1747896331856,0.486637,110860.0,110850.0,0.72249018]
[1747896332062,0.21662529,110860.0,110850.0,0.72249026]
[1747896332274,0.48722537,110860.0,110850.0,0.71346923]
[1747896332479,0.48922529,110860.0,110850.0,0.71346923]
[1747896332679,0.48020515,110860.0,110850.0,0.71346923]
[1747896332819,0.48922529,110860.0,110850.0,0.76346923]
[1747896333018,0.48020515,110860.0,110850.0,0.76346923]
[1747896333224,0.00213792,110860.0,110850.0,0.97095575]
[1747896333468,0.00213792,110860.0,110850.0,0.97997646]
[1747896333681,0.00213792,110860.0,110850.0,1.06952202]
[1747896334060,0.00413792,110860.0,110850.0,1.06952202]
[1747896334464,0.00413792,110860.0,110850.0,2.86344902]
[1747896334693,0.00413792,110860.0,110850.0,2.49570302]
[1747896334924,0.00413792,110860.0,110850.0,2.89570302]
[1747896335069,0.00413792,110860.0,110850.0,2.56218702]
[1747896335310,0.00013792,110860.0,110850.0,2.56218702]
[1747896335683,0.00013792,110860.0,110850.0,2.56418702]
[1747896337556,0.00013792,110860.0,110850.0,2.91872787]
[1747896337767,0.00842803,110880.0,110870.0,0.20744917]
[1747896337993,0.00893747,110880.0,110870.0,2.59617097]
[1747896338205,0.00893747,110880.0,110870.0,2.6604547]
[1747896338335,0.00050944,110880.0,110870.0,2.6604547]
[1747896338750,0.00050944,110880.0,110870.0,2.92300282]
[1747896339340,0.00050944,110880.0,110870.0,2.40090658]
[1747896339559,0.00050944,110880.0,110870.0,2.6634547]
[1747896341143,0.00050944,110880.0,110870.0,2.92800282]
[1747896341367,0.00050944,110880.0,110870.0,3.28877282]
[1747896342004,0.00050944,110880.0,110870.0,3.10834182]
[1747896342377,0.00050944,110880.0,110870.0,3.2217587]
[1747896342761,0.00050944,110880.0,110870.0,2.9917947]
[1747896343368,0.00050944,110880.0,110870.0,2.7212347]
[1747896343573,0.00050944,110880.0,110870.0,2.9917147]
[1747896344757,0.00050944,110880.0,110870.0,3.25426282]
[1747896346492,0.00050944,110880.0,110870.0,3.61950282]
[1747896347189,0.22950332,110910.0,110890.0,0.22699732]
[1747896347190,0.18034265,110900.0,110890.0,0.22699732]
[1747896347428,0.18034265,110900.0,110890.0,1.35560045]
[1747896347893,0.18034265,110900.0,110890.0,1.38531782]
[1747896348067,0.23610341,110910.0,110890.0,1.37629988]
[1747896348272,0.24511948,110910.0,110900.0,0.26254812]
[1747896348679,0.2361039,110910.0,110900.0,0.26254812]
[1747896348892,0.24512013,110910.0,110900.0,0.26254812]
[1747896349277,0.18034265,110900.0,110890.0,0.59870494]
[1747896349520,0.18034265,110900.0,110890.0,1.30382543]
[1747896349715,0.18935905,110900.0,110890.0,0.86125347]
[1747896350112,0.19837561,110900.0,110890.0,0.84957141]
[1747896350344,0.18935905,110900.0,110890.0,1.05148911]
[1747896350569,0.18935913,110900.0,110890.0,1.05148911]
[1747896350742,0.18935913,110900.0,110890.0,1.08120673]
[1747896350980,0.18034265,110900.0,110890.0,1.07218911]
[1747896351192,0.19035905,110900.0,110890.0,1.08120673]
[1747896351368,0.18134265,110900.0,110890.0,1.08120624]
[1747896351532,0.002,110900.0,110890.0,1.07218838]
[1747896351728,0.002,110900.0,110890.0,1.08120575]
[1747896351972,0.18234265,110900.0,110890.0,1.07218838]
[1747896352171,0.002,110900.0,110890.0,1.42120575]
[1747896353249,0.001,110900.0,110890.0,1.42120575]
[1747896353435,0.001,110900.0,110890.0,1.42220575]
[1747896353839,0.19851194,110910.0,110900.0,0.00901705]
[1747896354034,0.19851194,110910.0,110900.0,0.75170534]
[1747896354265,0.18048053,110910.0,110900.0,0.92979395]
[1747896354466,0.18048053,110910.0,110900.0,0.93881091]
[1747896354711,0.18949611,110910.0,110900.0,1.33881091]
[1747896355092,0.18148053,110910.0,110900.0,1.34782779]
[1747896355376,0.18248053,110910.0,110900.0,1.34782779]
[1747896355590,0.00838418,110930.0,110900.0,2.0036943]
[1747896355789,0.2482075,110930.0,110920.0,0.26254812]
[1747896355993,0.18031013,110920.0,110910.0,1.07420187]
[1747896356207,0.18031013,110920.0,110910.0,2.3367096]
[1747896356429,0.1893249,110920.0,110910.0,1.23511083]
[1747896356649,0.1893249,110920.0,110910.0,2.06009329]
[1747896356864,0.1893249,110920.0,110910.0,2.06910928]
[1747896357063,0.19833975,110920.0,110910.0,2.06910928]
[1747896357689,0.19833975,110920.0,110910.0,2.06009329]
[1747896357911,0.20735476,110920.0,110910.0,2.05107722]
[1747896358119,0.20735476,110920.0,110910.0,2.0520773]
[1747896358320,0.20735476,110920.0,110910.0,1.73976099]
[1747896358533,0.20735476,110920.0,110910.0,1.74877714]
[1747896358730,0.24685476,110920.0,110910.0,0.402]
[1747896358942,0.66738613,110920.0,110910.0,0.002]
[1747896359158,1.5711947,110920.0,110910.0,0.002]
[1747896359372,0.1984495,110860.0,110840.0,1.1459739]
[1747896359587,0.19844917,110860.0,110850.0,1.09260312]
[1747896359792,0.00901973,110860.0,110850.0,1.0776945]
[1747896360003,0.00901965,110860.0,110850.0,1.1964845]
[1747896360219,0.00901965,110860.0,110850.0,0.96008996]
[1747896360487,0.00901965,110860.0,110850.0,1.48373859]
[1747896360702,0.21648794,110860.0,110850.0,0.66305756]
[1747896361162,0.0193,110870.0,110860.0,0.00902038]
[1747896361362,0.00901884,110870.0,110860.0,0.47903639]
[1747896361575,0.21749501,110880.0,110870.0,0.18941101]
[1747896361775,0.18039144,110870.0,110860.0,0.19844783]
[1747896361980,0.207449,110870.0,110860.0,0.28960886]
[1747896362185,0.207449,110870.0,110860.0,0.29862892]
[1747896362186,0.19842968,110870.0,110860.0,0.29862892]
[1747896362386,0.24581328,110880.0,110870.0,0.18941093]
[1747896362592,0.00901884,110870.0,110860.0,0.19844726]
[1747896362924,0.22673152,110880.0,110870.0,0.00901957]
[1747896362925,0.24476886,110880.0,110870.0,0.00901957]
[1747896363134,0.01803792,110870.0,110860.0,0.19844775]
[1747896363338,0.01803792,110870.0,110850.0,1.19137343]
[1747896363339,0.19844759,110860.0,110850.0,1.19137343]
[1747896363540,0.19844718,110860.0,110850.0,1.0783482]
[1747896363755,0.21893,110870.0,110860.0,0.00902022]
[1747896363971,0.20744876,110870.0,110860.0,0.47001658]
[1747896364174,0.21646816,110870.0,110860.0,0.2805888]
[1747896364391,0.22548765,110870.0,110860.0,0.2825888]
[1747896364593,0.22548765,110870.0,110860.0,0.35102038]
[1747896364770,0.22548765,110870.0,110860.0,0.6135685]
[1747896364771,0.21646873,110870.0,110860.0,0.6135685]
[1747896364943,0.25726873,110870.0,110860.0,0.6135685]
[1747896365146,0.25726873,110870.0,110860.0,0.6225888]
[1747896365557,0.25726873,110870.0,110860.0,0.63160894]
[1747896365888,0.25726873,110870.0,110860.0,0.6225888]
[1747896366781,0.25726873,110870.0,110860.0,0.6245888]
[1747896367841,0.2662883,110870.0,110860.0,0.63360902]
[1747896368157,0.25726914,110870.0,110860.0,0.36204068]
[1747896368367,0.2392305,110870.0,110860.0,0.004]
[1747896368566,0.2392305,110870.0,110860.0,0.26654812]
[1747896369595,0.59925606,110870.0,110860.0,0.004]
[1747896369811,0.59023657,110870.0,110860.0,0.004]
[1747896370025,0.59023657,110870.0,110860.0,0.26654812]
[1747896370235,0.50069101,110870.0,110860.0,0.26654812]
[1747896370622,0.50069101,110870.0,110860.0,0.26454812]
[1747896370827,0.50069101,110870.0,110860.0,0.26254812]
[1747896371049,0.50069101,110870.0,110860.0,0.26354812]
[1747896371258,0.22483911,110880.0,110870.0,0.34]
[1747896371477,0.22483911,110880.0,110870.0,0.60254812]
[1747896371682,0.24630274,110880.0,110870.0,0.60254812]
[1747896372647,0.23893025,110870.0,110860.0,0.341]
[1747896372873,0.22991093,110870.0,110860.0,0.60254812]
[1747896374136,0.22991093,110870.0,110860.0,0.60354812]
[1747896374817,0.22991093,110870.0,110860.0,0.60454812]
[1747896376237,0.18941068,110870.0,110860.0,0.79397614]
[1747896376444,0.18941044,110870.0,110860.0,0.80299636]
[1747896376675,0.20680226,110880.0,110870.0,0.18941093]
[1747896376905,0.21582085,110880.0,110870.0,0.45195905]
[1747896377116,0.21582085,110880.0,110870.0,0.26254812]
[1747896377326,0.20743152,110880.0,110870.0,0.46999745]
[1747896377554,0.20743152,110880.0,110870.0,0.46097837]
[1747896377764,0.21645011,110880.0,110870.0,0.46097837]
[1747896378009,0.21845011,110880.0,110870.0,0.46097845]
[1747896378189,0.21845011,110880.0,110870.0,0.46999777]
[1747896378403,0.22746878,110880.0,110870.0,0.46999777]
[1747896378823,0.22746878,110880.0,110870.0,0.46097845]
[1747896378954,0.22746878,110880.0,110870.0,0.47901685]
[1747896380111,0.01803792,110870.0,110860.0,0.56942786]
[1747896380338,0.01803792,110870.0,110860.0,1.48566985]
[1747896380570,0.01803784,110870.0,110860.0,1.46489023]
[1747896381520,0.19039547,110880.0,110870.0,0.00901949]
[1747896381744,0.00901729,110890.0,110880.0,0.5771382]
[1747896381983,0.02705236,110890.0,110880.0,2.8163586]
[1747896382202,0.02705227,110890.0,110880.0,2.8163586]
[1747896382424,0.02705227,110890.0,110880.0,2.5961236]
[1747896382828,0.00901729,110890.0,110880.0,2.5961236]
[1747896383040,0.01803474,110890.0,110880.0,2.5961236]
[1747896383478,0.02705227,110890.0,110880.0,2.5961236]
[1747896383653,0.01803474,110890.0,110880.0,2.5961236]
[1747896384110,0.0180319,110910.0,110900.0,0.21640994]
[1747896384350,0.2073742,110910.0,110900.0,0.4699415]
[1747896384594,0.2073742,110910.0,110900.0,0.85190782]
[1747896384827,0.19835845,110910.0,110900.0,0.86092478]
[1747896385270,0.20135845,110910.0,110900.0,0.86092478]
[1747896385499,0.20135845,110910.0,110900.0,0.86994158]
[1747896385735,0.18029581,110930.0,110910.0,1.07513886]
[1747896386005,0.2073559,110920.0,110910.0,0.61048]
[1747896386229,0.2073559,110920.0,110910.0,4.05988592]
[1747896386448,0.2073559,110920.0,110910.0,4.05086985]
[1747896386628,0.19834089,110920.0,110910.0,4.05086985]
[1747896387083,0.18932563,110920.0,110910.0,4.30440182]
[1747896387281,0.18932563,110920.0,110910.0,4.31341797]
[1747896387484,0.18932563,110920.0,110910.0,4.31441797]
[1747896387810,0.18932563,110920.0,110910.0,4.31341797]
[1747896388135,0.18932563,110920.0,110910.0,4.31541797]
[1747896389303,0.18932563,110920.0,110910.0,4.71541797]
[1747896390134,0.19834089,110920.0,110910.0,4.72443388]
[1747896390317,0.19834089,110920.0,110910.0,4.72443404]
[1747896390518,0.0090151,110920.0,110910.0,4.96894962]
[1747896390763,0.01803044,110920.0,110910.0,4.9869816]
[1747896390981,0.01803044,110920.0,110910.0,4.72443348]
[1747896391519,0.01802995,110920.0,110910.0,4.72443348]
[1747896391934,0.02704513,110920.0,110910.0,4.72443348]
[1747896392381,0.02704513,110920.0,110910.0,4.9869816]
[1747896392590,0.00901485,110920.0,110910.0,5.0060816]
[1747896392804,0.19832668,110930.0,110920.0,0.19834057]
[1747896393010,0.19832668,110930.0,110920.0,0.72343697]
[1747896393418,0.19832668,110930.0,110920.0,0.73245215]
[1747896393717,0.19832668,110930.0,110920.0,1.13245215]
[1747896394126,0.19832668,110930.0,110920.0,1.47245215]
[1747896394332,0.23992668,110930.0,110920.0,1.26509624]
[1747896394553,0.23992668,110930.0,110920.0,1.00254812]
[1747896395385,0.23992668,110930.0,110920.0,1.01156354]
[1747896395629,0.21952668,110930.0,110920.0,1.45442179]
[1747896395874,0.50031223,110930.0,110920.0,0.74]
[1747896396127,0.58985779,110930.0,110920.0,0.4]
[1747896396351,1.00395779,110930.0,110920.0,0.4]
[1747896397532,1.00395779,110930.0,110920.0,0.66254812]
[1747896398522,1.01233647,110930.0,110920.0,0.66254812]
[1747896398739,1.01233647,110930.0,110920.0,0.4]
[1747896399360,1.01233647,110930.0,110920.0,0.66254812]
[1747896399780,1.01233647,110930.0,110920.0,0.4]
[1747896401228,0.19835845,110910.0,110900.0,0.60254812]
[1747896401432,0.46875845,110910.0,110900.0,0.60254812]
[1747896401646,0.46875845,110910.0,110900.0,1.00254812]
[1747896402574,0.46875845,110910.0,110900.0,0.7729935]
[1747896403406,0.46875845,110910.0,110900.0,0.7759935]
[1747896403825,0.46875845,110910.0,110900.0,1.00754812]
[1747896404027,0.46875845,110910.0,110900.0,0.66254812]
[1747896404232,0.46875845,110910.0,110900.0,0.66354812]
[1747896404439,0.46875845,110910.0,110900.0,0.66454812]
[1747896404642,0.46875845,110910.0,110900.0,0.67442653]
[1747896406353,0.46875845,110910.0,110900.0,1.01442653]
[1747896406562,0.47713713,110910.0,110900.0,1.01442653]
[1747896407178,0.20673713,110910.0,110900.0,1.01442653]
[1747896407424,0.47717713,110910.0,110900.0,1.01442653]
[1747896408460,0.01739434,110910.0,110900.0,1.01442653]
[1747896408718,0.20737411,110910.0,110900.0,1.25340327]
[1747896408928,0.21639026,110910.0,110900.0,1.32546653]
[1747896409137,0.21639026,110910.0,110900.0,1.52384319]
[1747896409322,0.21639026,110910.0,110900.0,1.52384327]
[1747896410269,0.21639026,110910.0,110900.0,1.52284327]
[1747896410718,0.21739026,110910.0,110900.0,1.53284327]
[1747896411122,0.21739026,110910.0,110900.0,1.53084327]
[1747896411437,0.21639026,110910.0,110900.0,1.53086007]
[1747896411693,0.21639026,110910.0,110900.0,1.53586007]
[1747896412460,0.00901566,110910.0,110900.0,1.53499822]
[1747896412746,0.01803149,110910.0,110900.0,2.19835822]
[1747896412985,0.18031013,110920.0,110910.0,0.56834246]
[1747896413241,0.216371,110920.0,110910.0,0.84892288]
[1747896413965,0.22538601,110920.0,110910.0,1.25793879]
[1747896414424,0.20674766,110920.0,110910.0,0.742]
[1747896414649,0.20674766,110920.0,110910.0,0.744]
[1747896415046,0.20674766,110920.0,110910.0,1.00654812]
[1747896415190,0.19773232,110920.0,110910.0,1.00654812]
[1747896415823,0.22477712,110920.0,110910.0,1.24420681]
[1747896416033,0.22477712,110920.0,110910.0,1.24420689]
[1747896416254,0.22538577,110920.0,110910.0,1.24420689]
[1747896416720,0.216371,110920.0,110910.0,1.24420689]
[1747896417112,0.216371,110920.0,110910.0,1.23519074]
[1747896417499,0.216371,110920.0,110910.0,1.24420689]
[1747896417767,0.216371,110920.0,110910.0,1.22617451]
[1747896417987,0.216371,110920.0,110910.0,1.23519082]
[1747896418761,0.216371,110920.0,110910.0,1.24420705]
[1747896419973,0.216371,110920.0,110910.0,1.2532232]
[1747896420312,0.19832668,110930.0,110920.0,0.34]
[1747896420491,0.19832668,110930.0,110920.0,0.60254812]
[1747896420687,0.19832668,110930.0,110920.0,0.62194812]
[1747896420896,0.20673545,110930.0,110920.0,1.02194812]
[1747896421092,0.197721,110930.0,110920.0,0.74]
[1747896422194,0.197721,110930.0,110920.0,0.741]
[1747896423786,0.217421,110930.0,110920.0,0.741]
[1747896426166,0.217421,110930.0,110920.0,0.74]
[1747896428273,0.197721,110930.0,110920.0,1.00254812]
[1747896428413,0.197721,110930.0,110920.0,1.02314812]
[1747896429032,0.197721,110930.0,110920.0,1.00254812]
[1747896429257,0.197721,110930.0,110920.0,0.74]
[1747896430370,0.197721,110930.0,110920.0,0.74960393]
[1747896431001,0.197721,110930.0,110920.0,1.01215205]
[1747896431210,0.197721,110930.0,110920.0,1.03165205]
[1747896431798,0.2067308,110930.0,110920.0,1.25029278]
[1747896431998,0.22475977,110930.0,110920.0,1.2412776]
[1747896432344,0.22475977,110930.0,110920.0,1.23167367]
[1747896432578,0.22475977,110930.0,110920.0,1.22265825]
[1747896432777,0.22475977,110930.0,110920.0,1.00254812]
[1747896432983,0.20673161,110930.0,110920.0,1.00254812]
[1747896433667,0.22583161,110930.0,110920.0,0.74]
[1747896433884,0.24683161,110930.0,110920.0,0.74]
[1747896435767,0.49623161,110930.0,110920.0,0.74]
[1747896438154,0.51683161,110930.0,110920.0,0.74]
[1747896439075,0.49623161,110930.0,110920.0,0.74]
[1747896439911,0.49623161,110930.0,110920.0,1.00254812]
[1747896441416,0.49623161,110930.0,110920.0,0.74]
[1747896442766,0.51713161,110930.0,110920.0,0.74]
[1747896443395,0.52574687,110930.0,110920.0,0.74]
[1747896447132,0.52574687,110930.0,110920.0,0.401]
[1747896447765,0.52574687,110930.0,110920.0,0.741]
[1747896448211,0.50484687,110930.0,110920.0,0.741]
[1747896449918,0.49623161,110930.0,110920.0,0.741]
[1747896450554,0.51683161,110930.0,110920.0,0.741]
[1747896451896,0.49623161,110930.0,110920.0,0.741]
[1747896453205,0.47713161,110930.0,110920.0,0.741]
[1747896457568,0.33657717,110930.0,110920.0,0.741]
[1747896457778,1.48731868,110930.0,110920.0,0.001]
[1747896457985,1.49595268,110930.0,110920.0,0.001]
[1747896458421,1.40643117,110930.0,110920.0,0.001]
[1747896458630,0.24015845,110910.0,110900.0,0.34]
[1747896458847,0.51055845,110910.0,110900.0,0.34]
[1747896459489,0.52414401,110910.0,110900.0,0.34]
[1747896459695,0.53256966,110910.0,110900.0,0.34]
[1747896459896,0.53256966,110910.0,110900.0,0.342]
[1747896460068,0.51226966,110910.0,110900.0,0.342]
[1747896460502,0.51226966,110910.0,110900.0,0.344]
[1747896460676,0.49076966,110910.0,110900.0,0.344]
[1747896461497,0.49076966,110910.0,110900.0,0.26654812]
[1747896461868,0.49076966,110910.0,110900.0,0.66654812]
[1747896463361,0.4771841,110910.0,110900.0,0.89670782]
[1747896463562,0.21579984,110910.0,110900.0,0.91274158]
[1747896463684,0.22481583,110910.0,110900.0,0.91274166]
[1747896463890,0.22481583,110910.0,110900.0,0.90372478]
[1747896464102,0.22481583,110910.0,110900.0,0.89470782]
[1747896464304,0.21580017,110910.0,110900.0,0.71436525]
[1747896464700,0.21580017,110910.0,110900.0,0.72338221]
[1747896464992,0.21580017,110910.0,110900.0,0.7233823]
[1747896465239,0.20678426,110910.0,110900.0,0.71436525]
[1747896465410,0.20678426,110910.0,110900.0,0.7233823]
[1747896465855,0.20678426,110910.0,110900.0,0.71436525]
[1747896466407,0.20678426,110910.0,110900.0,0.70534812]
[1747896466713,0.20678426,110910.0,110900.0,0.71436525]
[1747896466890,0.20678426,110910.0,110900.0,0.70534812]
[1747896467104,0.20678426,110910.0,110900.0,0.71436525]
[1747896467528,0.20678426,110910.0,110900.0,0.49715096]
[1747896467726,0.20678426,110910.0,110900.0,0.48813383]
[1747896468254,0.20678426,110910.0,110900.0,0.49715096]
[1747896468377,0.20678426,110910.0,110900.0,0.48813383]
[1747896470304,0.20678426,110910.0,110900.0,0.49715096]
[1747896470522,0.20678426,110910.0,110900.0,0.48813383]
[1747896471793,0.19776827,110910.0,110900.0,0.70334812]
[1747896474759,0.19776827,110910.0,110900.0,0.4408]
[1747896474965,0.19776827,110910.0,110900.0,0.70334812]
[1747896475465,0.19776827,110910.0,110900.0,1.04334812]
[1747896478088,0.18875204,110910.0,110900.0,1.04334812]
[1747896479728,0.18875204,110910.0,110900.0,0.97437681]
[1747896480465,0.18875204,110910.0,110900.0,0.95307681]
[1747896482417,0.18875204,110910.0,110900.0,0.97257681]
[1747896482639,0.00842565,110910.0,110900.0,1.24246502]
[1747896482854,0.02645739,110910.0,110900.0,2.30378902]
[1747896483083,0.03547354,110910.0,110900.0,1.95186334]
[1747896483296,0.22481608,110910.0,110900.0,1.38111486]
[1747896483517,0.03547346,110910.0,110900.0,1.39914822]
[1747896483723,0.01803174,110910.0,110900.0,1.46775206]
[1747896483928,0.01803166,110910.0,110900.0,1.46775206]
[1747896484139,0.01803166,110910.0,110900.0,1.3782065]